[Event "Titled Tuesday Blitz December 14 2021"]
[White "Navalgund, Niranjan"]
[Black "Dubov, Daniil"]
[WhiteFideId "5030854"]
[BlackFideId "24126055"]
[WhiteElo "2290"]
[BlackElo "2749"]
[Result "0-1"]
[Round "01"]
[TimeControl "180+1"]
[Date "2021.12.14"]
[WhiteClock "0:00:21"]
[BlackClock "0:00:47"]

1. d4 {[%clk 0:03:00]}  d5 {[%clk 0:02:57]} 2. Nf3 {[%clk 0:02:59]}  Nf6 {[%clk 0:02:56]} 3. c4 {[%clk 0:02:58]}  c6 {[%clk 0:02:56]} 4. g3 {[%clk 0:02:57]}  Bg4 {[%clk 0:02:54]} 5. Bg2 {[%clk 0:02:52]}  e6 {[%clk 0:02:54]} 6. O-O {[%clk 0:02:49]}  Be7 {[%clk 0:02:54]} 7. Ne5 {[%clk 0:02:48]}  Bf5 {[%clk 0:02:54]} 8. Nc3 {[%clk 0:02:46]}  O-O {[%clk 0:02:53]} 9. Bg5 {[%clk 0:02:46]}  Nbd7 {[%clk 0:02:53]} 10. Nxd7 {[%clk 0:02:46]}  Qxd7 {[%clk 0:02:48]} 11. Qb3 {[%clk 0:02:44]}  h6 {[%clk 0:02:46]} 12. Bf4 {[%clk 0:02:43]}  Rfd8 {[%clk 0:02:43]} 13. Rfd1 {[%clk 0:02:43]}  Rac8 {[%clk 0:02:43]} 14. a4 {[%clk 0:02:39]}  a5 {[%clk 0:02:35]} 15. h3 {[%clk 0:02:18]}  Bg6 {[%clk 0:02:22]} 16. g4 {[%clk 0:02:06]}  h5 {[%clk 0:02:11]} 17. g5 {[%clk 0:02:06]}  dxc4 {[%clk 0:02:12]} 18. Qxc4 {[%clk 0:02:04]}  Nd5 {[%clk 0:02:13]} 19. Bd2 {[%clk 0:02:02]}  Bc2 {[%clk 0:02:07]} 20. Rdc1 {[%clk 0:01:59]}  Nb6 {[%clk 0:02:05]} 21. Qa2 {[%clk 0:01:58]}  Bg6 {[%clk 0:02:04]} 22. e3 {[%clk 0:01:53]}  Bxg5 {[%clk 0:02:02]} 23. Qb3 {[%clk 0:01:53]}  Nd5 {[%clk 0:01:57]} 24. Ne4 {[%clk 0:01:52]}  Bxe4 {[%clk 0:01:53]} 25. Bxe4 {[%clk 0:01:52]}  Ra8 {[%clk 0:01:54]} 26. Bg2 {[%clk 0:01:44]}  Be7 {[%clk 0:01:53]} 27. Rd1 {[%clk 0:01:41]}  Bb4 {[%clk 0:01:48]} 28. e4 {[%clk 0:01:41]}  Ne7 {[%clk 0:01:40]} 29. Bxb4 {[%clk 0:01:41]}  axb4 {[%clk 0:01:41]} 30. Qxb4 {[%clk 0:01:41]}  Ng6 {[%clk 0:01:42]} 31. d5 {[%clk 0:01:33]}  Nf4 {[%clk 0:01:33]} 32. dxc6 {[%clk 0:01:22]}  Qxc6 {[%clk 0:01:32]} 33. Rxd8+ {[%clk 0:01:21]}  Rxd8 {[%clk 0:01:32]} 34. Bf1 {[%clk 0:01:17]}  e5 {[%clk 0:01:25]} 35. Qc3 {[%clk 0:01:05]}  Qxe4 {[%clk 0:01:17]} 36. Re1 {[%clk 0:01:01]}  Qg6+ {[%clk 0:01:17]} 37. Kh2 {[%clk 0:01:01]}  Qb6 {[%clk 0:01:15]} 38. Kg1 {[%clk 0:00:52]}  Rd6 {[%clk 0:01:14]} 39. Re3 {[%clk 0:00:43]}  Nd5 {[%clk 0:01:07]} 40. Qc8+ {[%clk 0:00:42]}  Rd8 {[%clk 0:01:06]} 41. Qc1 {[%clk 0:00:29]}  Nxe3 {[%clk 0:01:06]} 42. fxe3 {[%clk 0:00:29]}  Qb4 {[%clk 0:01:01]} 43. Qc7 {[%clk 0:00:25]}  Rd6 {[%clk 0:00:48]} 44. Bd3 {[%clk 0:00:21]}  Rxd3 {[%clk 0:00:46]} 45. Qc8+ {[%clk 0:00:21]}  Qf8 {[%clk 0:00:47]} 0-1


[Site "https://www.chess.com"]

[Event "Titled Tuesday Blitz December 14 2021"]
[White "Nesterov, Arseniy"]
[Black "Ianov, Viktor"]
[WhiteFideId "24198455"]
[BlackFideId "14102730"]
[WhiteElo "2489"]
[BlackElo "2307"]
[Result "1-0"]
[Round "01"]
[TimeControl "180+1"]
[Date "2021.12.14"]
[WhiteClock "0:00:57"]
[BlackClock "0:01:58"]

1. d4 {[%clk 0:03:00]}  d6 {[%clk 0:02:59]} 2. c4 {[%clk 0:03:01]}  g6 {[%clk 0:02:58]} 3. e4 {[%clk 0:03:00]}  Bg7 {[%clk 0:02:58]} 4. Nc3 {[%clk 0:02:59]}  c5 {[%clk 0:02:58]} 5. d5 {[%clk 0:02:59]}  e6 {[%clk 0:02:58]} 6. Nf3 {[%clk 0:02:56]}  Ne7 {[%clk 0:02:57]} 7. Bd3 {[%clk 0:02:53]}  a6 {[%clk 0:02:57]} 8. O-O {[%clk 0:02:53]}  exd5 {[%clk 0:02:55]} 9. exd5 {[%clk 0:02:51]}  O-O {[%clk 0:02:53]} 10. Re1 {[%clk 0:02:41]}  Bg4 {[%clk 0:02:50]} 11. Bg5 {[%clk 0:02:27]}  f6 {[%clk 0:02:49]} 12. Bf4 {[%clk 0:02:22]}  Nf5 {[%clk 0:02:33]} 13. h3 {[%clk 0:02:13]}  Bxf3 {[%clk 0:02:31]} 14. Qxf3 {[%clk 0:02:14]}  Nd7 {[%clk 0:02:25]} 15. Bxf5 {[%clk 0:02:11]}  gxf5 {[%clk 0:02:24]} 16. Qh5 {[%clk 0:01:22]}  Ne5 {[%clk 0:02:24]} 17. Qxf5 {[%clk 0:01:20]}  Nxc4 {[%clk 0:02:23]} 18. Re6 {[%clk 0:01:19]}  b5 {[%clk 0:02:18]} 19. Ne4 {[%clk 0:01:14]}  Ra7 {[%clk 0:02:02]} 20. b3 {[%clk 0:01:08]}  Nb6 {[%clk 0:02:00]} 21. Rxd6 {[%clk 0:01:05]}  Rd7 {[%clk 0:01:59]} 22. Rxb6 {[%clk 0:00:57]}  Rxd5 {[%clk 0:01:58]} 23. Qe6+ {[%clk 0:00:57]} 1-0


[Site "https://www.chess.com"]

[Event "Titled Tuesday Blitz December 14 2021"]
[White "Nilsen, Tobias Lang"]
[Black "Le, Tuan Minh"]
[WhiteFideId "1521624"]
[BlackFideId "12401153"]
[WhiteElo "1979"]
[BlackElo "2450"]
[Result "0-1"]
[Round "01"]
[TimeControl "180+1"]
[Date "2021.12.14"]
[WhiteClock "0:00:08"]
[BlackClock "0:00:33"]

1. e4 {[%clk 0:02:58]}  c5 {[%clk 0:02:34]} 2. Nf3 {[%clk 0:02:54]}  Nf6 {[%clk 0:02:32]} 3. e5 {[%clk 0:02:52]}  Nd5 {[%clk 0:02:30]} 4. Nc3 {[%clk 0:02:52]}  e6 {[%clk 0:02:31]} 5. Nxd5 {[%clk 0:02:47]}  exd5 {[%clk 0:02:31]} 6. d4 {[%clk 0:02:48]}  Nc6 {[%clk 0:02:32]} 7. dxc5 {[%clk 0:02:41]}  Bxc5 {[%clk 0:02:33]} 8. Qxd5 {[%clk 0:02:41]}  d6 {[%clk 0:02:33]} 9. exd6 {[%clk 0:02:42]}  Qb6 {[%clk 0:02:32]} 10. Qe4+ {[%clk 0:02:42]}  Be6 {[%clk 0:02:32]} 11. Qh4 {[%clk 0:02:43]}  Bxd6 {[%clk 0:02:32]} 12. Be2 {[%clk 0:02:29]}  O-O {[%clk 0:02:32]} 13. O-O {[%clk 0:02:27]}  Be7 {[%clk 0:02:15]} 14. Bg5 {[%clk 0:02:20]}  Bxg5 {[%clk 0:01:54]} 15. Nxg5 {[%clk 0:02:21]}  Bf5 {[%clk 0:01:55]} 16. Rfe1 {[%clk 0:01:13]}  h6 {[%clk 0:01:49]} 17. Ne4 {[%clk 0:01:08]}  Qxb2 {[%clk 0:01:43]} 18. Bd3 {[%clk 0:01:06]}  Bg6 {[%clk 0:01:28]} 19. Rab1 {[%clk 0:00:59]}  Qxa2 {[%clk 0:01:26]} 20. Rxb7 {[%clk 0:00:57]}  Rfe8 {[%clk 0:01:24]} 21. h3 {[%clk 0:00:47]}  Ne5 {[%clk 0:01:01]} 22. Bb5 {[%clk 0:00:25]}  Qa5 {[%clk 0:00:54]} 23. Rb1 {[%clk 0:00:20]}  Reb8 {[%clk 0:00:49]} 24. Bf1 {[%clk 0:00:14]}  Rxb7 {[%clk 0:00:45]} 25. Rxb7 {[%clk 0:00:15]}  Qd5 {[%clk 0:00:43]} 26. Re7 {[%clk 0:00:07]}  Bxe4 {[%clk 0:00:39]} 27. Qf4 {[%clk 0:00:08]}  Ng6 {[%clk 0:00:39]} 28. Qxe4 {[%clk 0:00:08]}  Nxe7 {[%clk 0:00:39]} 29. Qxe7 {[%clk 0:00:08]}  a5 {[%clk 0:00:36]} 30. c4 {[%clk 0:00:08]}  Qd8 {[%clk 0:00:35]} 31. Qa3 {[%clk 0:00:07]}  a4 {[%clk 0:00:33]} 32. c5 {[%clk 0:00:08]}  Qe7 {[%clk 0:00:30]} 33. Bb5 {[%clk 0:00:08]}  Qb7 {[%clk 0:00:28]} 34. Be2 {[%clk 0:00:06]}  Qb3 {[%clk 0:00:28]} 35. Qa1 {[%clk 0:00:04]}  a3 {[%clk 0:00:28]} 36. Bf3 {[%clk 0:00:05]}  Qb2 {[%clk 0:00:25]} 37. Qe1 {[%clk 0:00:02]}  a2 {[%clk 0:00:25]} 38. Bxa8 {[%clk 0:00:02]}  a1=Q {[%clk 0:00:26]} 39. Qxa1 {[%clk 0:00:03]}  Qxa1+ {[%clk 0:00:27]} 40. Kh2 {[%clk 0:00:03]}  Qxa8 {[%clk 0:00:27]} 41. g3 {[%clk 0:00:04]}  Qf3 {[%clk 0:00:28]} 42. h4 {[%clk 0:00:05]}  Qxf2+ {[%clk 0:00:28]} 43. Kh3 {[%clk 0:00:05]}  Qxc5 {[%clk 0:00:29]} 44. Kg4 {[%clk 0:00:06]}  h5+ {[%clk 0:00:28]} 45. Kf4 {[%clk 0:00:06]}  Qd4+ {[%clk 0:00:29]} 46. Kf3 {[%clk 0:00:04]}  f5 {[%clk 0:00:29]} 47. Kg2 {[%clk 0:00:05]}  Kf7 {[%clk 0:00:30]} 48. Kh2 {[%clk 0:00:05]}  Ke6 {[%clk 0:00:31]} 49. Kh3 {[%clk 0:00:06]}  Ke5 {[%clk 0:00:31]} 50. Kg2 {[%clk 0:00:07]}  Ke4 {[%clk 0:00:32]} 51. Kf1 {[%clk 0:00:06]}  Kf3 {[%clk 0:00:32]} 52. Ke1 {[%clk 0:00:07]}  Qf2+ {[%clk 0:00:32]} 53. Kd1 {[%clk 0:00:08]}  Ke3 {[%clk 0:00:33]} 54. g4 {[%clk 0:00:08]}  Qd2# {[%clk 0:00:33]} 0-1


[Site "https://www.chess.com"]

[Event "Titled Tuesday Blitz December 14 2021"]
[White "Pichot, Alan"]
[Black "Silva, Kaua Marques"]
[WhiteFideId "110973"]
[BlackFideId "22701168"]
[WhiteElo "2629"]
[BlackElo "2013"]
[Result "1-0"]
[Round "01"]
[TimeControl "180+1"]
[Date "2021.12.14"]
[WhiteClock "0:02:23"]
[BlackClock "0:01:34"]

1. e4 {[%clk 0:03:00]}  c6 {[%clk 0:03:00]} 2. Nf3 {[%clk 0:02:58]}  d5 {[%clk 0:02:58]} 3. Nc3 {[%clk 0:02:59]}  dxe4 {[%clk 0:02:57]} 4. Nxe4 {[%clk 0:02:59]}  Nf6 {[%clk 0:02:58]} 5. Qe2 {[%clk 0:03:00]}  Nxe4 {[%clk 0:02:58]} 6. Qxe4 {[%clk 0:03:01]}  Nd7 {[%clk 0:02:58]} 7. Bc4 {[%clk 0:03:01]}  Nf6 {[%clk 0:02:59]} 8. Qe2 {[%clk 0:03:00]}  e6 {[%clk 0:02:58]} 9. O-O {[%clk 0:03:00]}  Be7 {[%clk 0:02:53]} 10. d4 {[%clk 0:03:00]}  O-O {[%clk 0:02:54]} 11. c3 {[%clk 0:03:00]}  Nd5 {[%clk 0:02:54]} 12. Ne5 {[%clk 0:03:00]}  Bf6 {[%clk 0:02:53]} 13. Bd2 {[%clk 0:02:59]}  Qc7 {[%clk 0:02:52]} 14. Rfe1 {[%clk 0:02:59]}  b6 {[%clk 0:02:52]} 15. Rad1 {[%clk 0:02:58]}  Bb7 {[%clk 0:02:52]} 16. Qh5 {[%clk 0:02:57]}  c5 {[%clk 0:02:45]} 17. Ng4 {[%clk 0:02:54]}  Be7 {[%clk 0:02:23]} 18. dxc5 {[%clk 0:02:37]}  Qxc5 {[%clk 0:02:04]} 19. Bd3 {[%clk 0:02:26]}  g6 {[%clk 0:01:53]} 20. Qe5 {[%clk 0:02:24]}  Qc7 {[%clk 0:01:34]} 21. Nh6# {[%clk 0:02:23]} 1-0


[Site "https://www.chess.com"]

[Event "Titled Tuesday Blitz December 14 2021"]
[White "Polaczek, Richard"]
[Black "Grigorjev, Iljya"]
[WhiteFideId "200026"]
[BlackFideId "24159565"]
[WhiteElo "2326"]
[BlackElo "2124"]
[Result "0-1"]
[Round "01"]
[TimeControl "180+1"]
[Date "2021.12.15"]
[WhiteClock "0:00:01"]
[BlackClock "0:00:04"]

1. d4 {[%clk 0:02:59]}  Nf6 {[%clk 0:03:00]} 2. Bg5 {[%clk 0:02:57]}  d5 {[%clk 0:02:59]} 3. Bxf6 {[%clk 0:02:55]}  exf6 {[%clk 0:03:00]} 4. e3 {[%clk 0:02:54]}  Bd6 {[%clk 0:03:00]} 5. Nd2 {[%clk 0:02:55]}  c6 {[%clk 0:02:58]} 6. Ne2 {[%clk 0:02:54]}  f5 {[%clk 0:02:56]} 7. c4 {[%clk 0:02:53]}  dxc4 {[%clk 0:02:56]} 8. Nxc4 {[%clk 0:02:53]}  Bc7 {[%clk 0:02:53]} 9. Nc3 {[%clk 0:02:51]}  O-O {[%clk 0:02:53]} 10. g3 {[%clk 0:02:47]}  Nd7 {[%clk 0:02:53]} 11. Bg2 {[%clk 0:02:45]}  Nf6 {[%clk 0:02:53]} 12. O-O {[%clk 0:02:44]}  Qe7 {[%clk 0:02:52]} 13. a3 {[%clk 0:02:41]}  a5 {[%clk 0:02:51]} 14. Re1 {[%clk 0:02:27]}  Ne4 {[%clk 0:02:50]} 15. Qc2 {[%clk 0:02:18]}  Nd6 {[%clk 0:02:36]} 16. Ne5 {[%clk 0:02:11]}  g6 {[%clk 0:02:21]} 17. b4 {[%clk 0:02:03]}  Be6 {[%clk 0:02:12]} 18. Rab1 {[%clk 0:01:43]}  axb4 {[%clk 0:02:11]} 19. axb4 {[%clk 0:01:42]}  Nc4 {[%clk 0:02:12]} 20. Nxc4 {[%clk 0:01:36]}  Bxc4 {[%clk 0:02:13]} 21. d5 {[%clk 0:01:29]}  Be5 {[%clk 0:02:00]} 22. dxc6 {[%clk 0:01:23]}  bxc6 {[%clk 0:02:00]} 23. Ne2 {[%clk 0:00:54]}  Bb5 {[%clk 0:01:55]} 24. Nd4 {[%clk 0:00:51]}  Bxd4 {[%clk 0:01:49]} 25. exd4 {[%clk 0:00:50]}  Qd6 {[%clk 0:01:50]} 26. Qc5 {[%clk 0:00:44]}  Rad8 {[%clk 0:01:35]} 27. Rec1 {[%clk 0:00:41]}  Qxd4 {[%clk 0:01:10]} 28. Qxd4 {[%clk 0:00:39]}  Rxd4 {[%clk 0:01:11]} 29. Bxc6 {[%clk 0:00:39]}  Bd3 {[%clk 0:01:12]} 30. Rb3 {[%clk 0:00:33]}  Rc8 {[%clk 0:01:11]} 31. b5 {[%clk 0:00:26]}  Be4 {[%clk 0:00:50]} 32. Rbc3 {[%clk 0:00:26]}  Rb4 {[%clk 0:00:46]} 33. Rc5 {[%clk 0:00:20]}  Kf8 {[%clk 0:00:37]} 34. h4 {[%clk 0:00:16]}  h5 {[%clk 0:00:33]} 35. Bxe4 {[%clk 0:00:14]}  Rxc5 {[%clk 0:00:33]} 36. Rxc5 {[%clk 0:00:13]}  fxe4 {[%clk 0:00:34]} 37. Kf1 {[%clk 0:00:13]}  Ke7 {[%clk 0:00:34]} 38. Ke2 {[%clk 0:00:12]}  Kd6 {[%clk 0:00:35]} 39. Rc6+ {[%clk 0:00:13]}  Ke5 {[%clk 0:00:30]} 40. b6 {[%clk 0:00:10]}  Rb2+ {[%clk 0:00:29]} 41. Ke3 {[%clk 0:00:10]}  Rb3+ {[%clk 0:00:30]} 42. Ke2 {[%clk 0:00:08]}  f6 {[%clk 0:00:24]} 43. Kd2 {[%clk 0:00:06]}  Rb2+ {[%clk 0:00:21]} 44. Ke3 {[%clk 0:00:06]}  Rb3+ {[%clk 0:00:22]} 45. Ke2 {[%clk 0:00:06]}  g5 {[%clk 0:00:22]} 46. hxg5 {[%clk 0:00:05]}  fxg5 {[%clk 0:00:23]} 47. Rh6 {[%clk 0:00:05]}  Kf5 {[%clk 0:00:13]} 48. Rxh5 {[%clk 0:00:04]}  Rxb6 {[%clk 0:00:14]} 49. f4 {[%clk 0:00:02]}  Rb2+ {[%clk 0:00:10]} 50. Ke3 {[%clk 0:00:01]}  Rb3+ {[%clk 0:00:11]} 51. Ke2 {[%clk 0:00:01]}  Rb2+ {[%clk 0:00:05]} 52. Ke3 {[%clk 0:00:01]}  Rb3+ {[%clk 0:00:04]} 0-1


[Site "https://www.chess.com"]

[Event "Titled Tuesday Blitz December 14 2021"]
[White "Rasulov, Vugar"]
[Black "Gnechko, Ruslan"]
[WhiteFideId "13402390"]
[BlackFideId "14135868"]
[WhiteElo "2560"]
[BlackElo "2289"]
[Result "1-0"]
[Round "01"]
[TimeControl "180+1"]
[Date "2021.12.14"]
[WhiteClock "0:01:50"]
[BlackClock "0:00:11"]

1. d4 {[%clk 0:03:00]}  d5 {[%clk 0:02:57]} 2. c4 {[%clk 0:03:01]}  c6 {[%clk 0:02:56]} 3. Nf3 {[%clk 0:03:01]}  Nf6 {[%clk 0:02:57]} 4. Qc2 {[%clk 0:03:01]}  e6 {[%clk 0:02:56]} 5. Nc3 {[%clk 0:03:01]}  Nbd7 {[%clk 0:02:56]} 6. Bg5 {[%clk 0:02:59]}  h6 {[%clk 0:02:54]} 7. Bh4 {[%clk 0:02:59]}  Be7 {[%clk 0:02:54]} 8. e3 {[%clk 0:02:58]}  O-O {[%clk 0:02:52]} 9. O-O-O {[%clk 0:02:58]}  a5 {[%clk 0:02:23]} 10. c5 {[%clk 0:02:54]}  b6 {[%clk 0:02:22]} 11. cxb6 {[%clk 0:02:54]}  Qxb6 {[%clk 0:02:17]} 12. Bd3 {[%clk 0:02:51]}  Ba6 {[%clk 0:02:12]} 13. g4 {[%clk 0:02:44]}  Bxd3 {[%clk 0:02:11]} 14. Rxd3 {[%clk 0:02:45]}  Rfe8 {[%clk 0:01:58]} 15. Rg1 {[%clk 0:02:44]}  Ne4 {[%clk 0:01:56]} 16. Bxe7 {[%clk 0:02:43]}  Rxe7 {[%clk 0:01:55]} 17. g5 {[%clk 0:02:44]}  Nxg5 {[%clk 0:01:50]} 18. Nxg5 {[%clk 0:02:45]}  hxg5 {[%clk 0:01:50]} 19. Rxg5 {[%clk 0:02:45]}  e5 {[%clk 0:01:41]} 20. h4 {[%clk 0:02:38]}  Rc8 {[%clk 0:01:27]} 21. h5 {[%clk 0:02:36]}  Qd8 {[%clk 0:00:43]} 22. h6 {[%clk 0:02:34]}  g6 {[%clk 0:00:43]} 23. Rd1 {[%clk 0:02:30]}  exd4 {[%clk 0:00:39]} 24. exd4 {[%clk 0:02:28]}  Nf8 {[%clk 0:00:37]} 25. f4 {[%clk 0:02:26]}  Re3 {[%clk 0:00:32]} 26. Qf2 {[%clk 0:02:18]}  Qe7 {[%clk 0:00:31]} 27. Re5 {[%clk 0:02:19]}  Rxe5 {[%clk 0:00:30]} 28. fxe5 {[%clk 0:02:19]}  Qg5+ {[%clk 0:00:30]} 29. Qd2 {[%clk 0:02:19]}  Qxd2+ {[%clk 0:00:30]} 30. Kxd2 {[%clk 0:02:20]}  Ne6 {[%clk 0:00:30]} 31. Ke3 {[%clk 0:02:17]}  Rb8 {[%clk 0:00:28]} 32. b3 {[%clk 0:02:17]}  Rb4 {[%clk 0:00:27]} 33. Na4 {[%clk 0:02:15]}  Kh7 {[%clk 0:00:27]} 34. Rf1 {[%clk 0:02:09]}  Rxd4 {[%clk 0:00:22]} 35. Rxf7+ {[%clk 0:02:10]}  Kxh6 {[%clk 0:00:22]} 36. Nc5 {[%clk 0:02:07]}  Ng5 {[%clk 0:00:13]} 37. Kxd4 {[%clk 0:02:01]}  Nxf7 {[%clk 0:00:13]} 38. e6 {[%clk 0:02:02]}  Nd6 {[%clk 0:00:12]} 39. Ke5 {[%clk 0:02:01]}  Ne8 {[%clk 0:00:13]} 40. e7 {[%clk 0:01:57]}  g5 {[%clk 0:00:13]} 41. Nd7 {[%clk 0:01:54]}  g4 {[%clk 0:00:12]} 42. Nf6 {[%clk 0:01:54]}  g3 {[%clk 0:00:13]} 43. Nxe8 {[%clk 0:01:52]}  g2 {[%clk 0:00:13]} 44. Nf6 {[%clk 0:01:49]}  g1=Q {[%clk 0:00:13]} 45. e8=Q {[%clk 0:01:50]}  Qe3+ {[%clk 0:00:09]} 46. Kd6 {[%clk 0:01:50]}  Qxe8 {[%clk 0:00:10]} 47. Nxe8 {[%clk 0:01:51]}  d4 {[%clk 0:00:10]} 48. Nf6 {[%clk 0:01:49]}  d3 {[%clk 0:00:11]} 49. Ne4 {[%clk 0:01:49]}  Kg6 {[%clk 0:00:10]} 50. Kxc6 {[%clk 0:01:49]}  Kf5 {[%clk 0:00:11]} 51. Kd5 {[%clk 0:01:50]}  Kf4 {[%clk 0:00:11]} 52. Kd4 {[%clk 0:01:50]} 1-0


[Site "https://www.chess.com"]

[Event "Titled Tuesday Blitz December 14 2021"]
[White "Rodchenkov, Sergey D."]
[Black "Ibrahimli, Murad"]
[WhiteFideId "4168712"]
[BlackFideId "13410229"]
[WhiteElo "2306"]
[BlackElo "2109"]
[Result "0-1"]
[Round "01"]
[TimeControl "180+1"]
[Date "2021.12.14"]
[WhiteClock "0:00:15"]
[BlackClock "0:00:19"]

1. e4 {[%clk 0:03:00]}  e5 {[%clk 0:02:58]} 2. Nf3 {[%clk 0:03:00]}  Nc6 {[%clk 0:02:58]} 3. Bc4 {[%clk 0:03:00]}  Nf6 {[%clk 0:02:56]} 4. d3 {[%clk 0:03:00]}  Be7 {[%clk 0:02:55]} 5. O-O {[%clk 0:02:59]}  O-O {[%clk 0:02:55]} 6. Re1 {[%clk 0:03:00]}  d6 {[%clk 0:02:55]} 7. c3 {[%clk 0:03:00]}  a6 {[%clk 0:02:52]} 8. Bb3 {[%clk 0:02:59]}  h6 {[%clk 0:02:51]} 9. Nbd2 {[%clk 0:02:58]}  Kh8 {[%clk 0:02:51]} 10. Nf1 {[%clk 0:02:58]}  Na5 {[%clk 0:02:43]} 11. Bc2 {[%clk 0:02:56]}  c5 {[%clk 0:02:44]} 12. Ng3 {[%clk 0:02:56]}  Nc6 {[%clk 0:02:44]} 13. h3 {[%clk 0:02:56]}  Be6 {[%clk 0:02:43]} 14. d4 {[%clk 0:02:55]}  cxd4 {[%clk 0:02:42]} 15. cxd4 {[%clk 0:02:53]}  exd4 {[%clk 0:02:42]} 16. Nxd4 {[%clk 0:02:52]}  Nxd4 {[%clk 0:02:43]} 17. Qxd4 {[%clk 0:02:52]}  Rc8 {[%clk 0:02:43]} 18. Bb3 {[%clk 0:02:44]}  d5 {[%clk 0:02:26]} 19. e5 {[%clk 0:02:36]}  Bc5 {[%clk 0:02:25]} 20. Qf4 {[%clk 0:02:35]}  Nd7 {[%clk 0:02:17]} 21. Be3 {[%clk 0:02:33]}  Bxe3 {[%clk 0:02:16]} 22. Rxe3 {[%clk 0:02:32]}  Qg5 {[%clk 0:02:13]} 23. Qxg5 {[%clk 0:02:28]}  hxg5 {[%clk 0:02:13]} 24. Rd1 {[%clk 0:02:28]}  Rc5 {[%clk 0:01:52]} 25. Ne2 {[%clk 0:02:23]}  Rfc8 {[%clk 0:01:46]} 26. Nc3 {[%clk 0:02:22]}  Nb6 {[%clk 0:01:39]} 27. Rd4 {[%clk 0:02:18]}  Nc4 {[%clk 0:01:37]} 28. Bxc4 {[%clk 0:02:15]}  dxc4 {[%clk 0:01:37]} 29. g4 {[%clk 0:02:05]}  b5 {[%clk 0:01:36]} 30. a3 {[%clk 0:02:03]}  a5 {[%clk 0:01:35]} 31. Rd6 {[%clk 0:01:01]}  b4 {[%clk 0:01:33]} 32. axb4 {[%clk 0:01:01]}  axb4 {[%clk 0:01:33]} 33. Na4 {[%clk 0:01:00]}  c3 {[%clk 0:01:17]} 34. Nxc5 {[%clk 0:00:56]}  cxb2 {[%clk 0:01:16]} 35. Re1 {[%clk 0:00:55]}  Rxc5 {[%clk 0:01:15]} 36. Rdd1 {[%clk 0:00:46]}  Ba2 {[%clk 0:01:13]} 37. Kg2 {[%clk 0:00:46]}  Rc3 {[%clk 0:01:07]} 38. f3 {[%clk 0:00:34]}  Kg8 {[%clk 0:00:50]} 39. Rd8+ {[%clk 0:00:31]}  Kh7 {[%clk 0:00:50]} 40. Rdd1 {[%clk 0:00:31]}  Bb3 {[%clk 0:00:40]} 41. Rb1 {[%clk 0:00:29]}  Rc2+ {[%clk 0:00:40]} 42. Kg3 {[%clk 0:00:28]}  Ba2 {[%clk 0:00:39]} 43. Rbd1 {[%clk 0:00:28]}  b3 {[%clk 0:00:36]} 44. h4 {[%clk 0:00:28]}  gxh4+ {[%clk 0:00:34]} 45. Kxh4 {[%clk 0:00:28]}  Rc1 {[%clk 0:00:18]} 46. Rxc1 {[%clk 0:00:16]}  bxc1=Q {[%clk 0:00:18]} 47. Rxc1 {[%clk 0:00:16]}  b2 {[%clk 0:00:19]} 48. Rh1 {[%clk 0:00:15]}  b1=Q {[%clk 0:00:19]} 49. Rxb1 {[%clk 0:00:16]}  Bxb1 {[%clk 0:00:19]} 50. f4 {[%clk 0:00:16]}  Kg6 {[%clk 0:00:19]} 51. f5+ {[%clk 0:00:15]}  Bxf5 {[%clk 0:00:19]} 0-1


[Site "https://www.chess.com"]